[Event "NM-Senior Hurtig 2018"]
[Site "Frimurer Logen, Norway"]
[Date "2018.11.11"]
[Round "9.8"]
[White "Smedby, Ole"]
[Black "Larsen, Arild"]
[Result "1/2-1/2"]
[TimeControl "20 + 10"]
[WhiteElo "1823"]
[BlackElo "1858"]

1. d4 {[%clk 00:20:06]} {[%emt 00:00:02]} Nf6 {[%clk 00:20:05]} {[%emt
00:00:06]} 2. c4 {[%clk 00:20:14]} {[%emt 00:00:01]} e6 {[%clk 00:20:06]}
{[%emt 00:00:09]} 3. Nf3 {[%clk 00:20:21]} {[%emt 00:00:03]} d5 {[%clk
00:20:09]} {[%emt 00:00:07]} 4. e3 {[%clk 00:20:29]} {[%emt 00:00:03]} c6
{[%clk 00:20:05]} {[%emt 00:00:14]} 5. Bd3 {[%clk 00:20:33]} {[%emt 00:00:05]}
Bd6 {[%clk 00:19:36]} {[%emt 00:00:39]} 6. Nc3 {[%clk 00:20:39]} {[%emt
00:00:04]} O-O {[%clk 00:19:23]} {[%emt 00:00:22]} 7. O-O {[%clk 00:20:48]}
{[%emt 00:00:02]} Nbd7 {[%clk 00:18:55]} {[%emt 00:00:38]} 8. e4 {[%clk
00:20:52]} {[%emt 00:00:05]} dxe4 {[%clk 00:18:54]} {[%emt 00:00:12]} 9. Nxe4
{[%clk 00:21:00]} {[%emt 00:00:02]} Nxe4 {[%clk 00:18:39]} {[%emt 00:00:24]} 10.
Bxe4 {[%clk 00:21:08]} {[%emt 00:00:02]} f5 {[%clk 00:18:22]} {[%emt 00:00:27]}
11. Bc2 {[%clk 00:21:13]} {[%emt 00:00:05]} Nf6 {[%clk 00:18:09]} {[%emt
00:00:22]} 12. Re1 {[%clk 00:20:49]} {[%emt 00:00:35]} Qc7 {[%clk 00:17:55]}
{[%emt 00:00:25]} 13. h3 {[%clk 00:20:33]} {[%emt 00:00:25]} Bd7 {[%clk
00:17:45]} {[%emt 00:00:21]} 14. Ne5 {[%clk 00:20:12]} {[%emt 00:00:29]} Rae8
{[%clk 00:17:26]} {[%emt 00:00:30]} 15. a3 {[%clk 00:19:34]} {[%emt 00:00:49]}
c5 {[%clk 00:17:05]} {[%emt 00:00:30]} 16. Nxd7 {[%clk 00:19:26]} {[%emt
00:00:17]} Nxd7 {[%clk 00:16:55]} {[%emt 00:00:22]} 17. Ba4 {[%clk 00:18:13]}
{[%emt 00:01:22]} Re7 {[%clk 00:15:29]} {[%emt 00:01:34]} 18. Bxd7 {[%clk
00:16:24]} {[%emt 00:02:01]} Rxd7 {[%clk 00:14:52]} {[%emt 00:00:48]} 19. Rxe6
{[%clk 00:15:11]} {[%emt 00:01:22]} cxd4 {[%clk 00:14:35]} {[%emt 00:00:27]} 20.
Qd3 {[%clk 00:14:49]} {[%emt 00:00:31]} Bh2+ {[%clk 00:13:26]} {[%emt
00:01:21]} 21. Kh1 {[%clk 00:14:01]} {[%emt 00:00:58]} Bf4 {[%clk 00:13:33]}
{[%emt 00:00:03]} 22. Bxf4 {[%clk 00:13:55]} {[%emt 00:00:15]} Qxf4 {[%clk
00:13:41]} {[%emt 00:00:01]} 23. Re2 {[%clk 00:13:30]} {[%emt 00:00:36]} Qg5
{[%clk 00:11:15]} {[%emt 00:02:36]} 24. Rae1 {[%clk 00:13:30]} {[%emt
00:00:10]} h6 {[%clk 00:11:01]} {[%emt 00:00:25]} 25. b4 {[%clk 00:12:14]}
{[%emt 00:01:26]} Qd8 {[%clk 00:10:12]} {[%emt 00:00:57]} 26. Re5 {[%clk
00:11:48]} {[%emt 00:00:37]} Qf6 {[%clk 00:09:12]} {[%emt 00:01:10]} 27. Re6
{[%clk 00:10:43]} {[%emt 00:01:14]} Qg5 {[%clk 00:09:01]} {[%emt 00:00:22]} 28.
R6e5 {[%clk 00:10:30]} {[%emt 00:00:23]} Qf6 {[%clk 00:09:07]} {[%emt
00:00:04]} 29. f4 {[%clk 00:09:55]} {[%emt 00:00:44]} Qd8 {[%clk 00:08:25]}
{[%emt 00:00:54]} 30. g3 {[%clk 00:09:16]} {[%emt 00:00:48]} Qc7 {[%clk
00:08:16]} {[%emt 00:00:19]} 31. Rc5 {[%clk 00:09:12]} {[%emt 00:00:14]} Qd8
{[%clk 00:08:24]} {[%emt 00:00:02]} 32. Ree5 {[%clk 00:09:13]} {[%emt
00:00:09]} g6 {[%clk 00:08:28]} {[%emt 00:00:07]} 33. Rcd5 {[%clk 00:09:14]}
{[%emt 00:00:09]} Rff7 {[%clk 00:08:18]} {[%emt 00:00:19]} 34. Qxd4 {[%clk
00:09:06]} {[%emt 00:00:17]} Rg7 {[%clk 00:07:56]} {[%emt 00:00:33]} 35. Kg2
{[%clk 00:09:00]} {[%emt 00:00:16]} Rgf7 {[%clk 00:08:04]} {[%emt 00:00:02]} 36.
Kf3 {[%clk 00:09:03]} {[%emt 00:00:07]} b5 {[%clk 00:07:55]} {[%emt 00:00:19]}
37. Rxd7 {[%clk 00:08:35]} {[%emt 00:00:38]} Rxd7 {[%clk 00:08:02]} {[%emt
00:00:03]} 38. Rd5 {[%clk 00:08:36]} {[%emt 00:00:08]} Rxd5 {[%clk 00:08:03]}
{[%emt 00:00:11]} 39. Qxd5+ {[%clk 00:08:43]} {[%emt 00:00:03]} Qxd5+ {[%clk
00:08:10]} {[%emt 00:00:02]} 40. cxd5 {[%clk 00:08:51]} {[%emt 00:00:02]}
1/2-1/2

[Event "NM-Senior Hurtig 2018"]
[Site "Frimurer Logen, Norway"]
[Date "2018.11.11"]
[Round "9.9"]
[White "Synnestvedt, Jan"]
[Black "Bjørgvik, Jan Arne"]
[Result "0-1"]
[TimeControl "20 + 10"]
[WhiteElo "1941"]
[BlackElo "1723"]

1. d4 {[%clk 00:20:07]} {[%emt 00:00:03]} d5 {[%clk 00:20:06]} {[%emt
00:00:05]} 2. Nf3 {[%clk 00:20:14]} {[%emt 00:00:03]} Nf6 {[%clk 00:20:01]}
{[%emt 00:00:15]} 3. Bf4 {[%clk 00:20:23]} {[%emt 00:00:01]} e6 {[%clk
00:20:08]} {[%emt 00:00:03]} 4. e3 {[%clk 00:20:31]} {[%emt 00:00:02]} Bd6
{[%clk 00:20:14]} {[%emt 00:00:04]} 5. Bg5 {[%clk 00:20:39]} {[%emt 00:00:02]}
Be7 {[%clk 00:20:23]} {[%emt 00:00:01]} 6. Bd3 {[%clk 00:20:44]} {[%emt
00:00:05]} h6 {[%clk 00:20:20]} {[%emt 00:00:13]} 7. Bh4 {[%clk 00:20:53]}
{[%emt 00:00:01]} Nbd7 {[%clk 00:19:53]} {[%emt 00:00:37]} 8. c4 {[%clk
00:20:58]} {[%emt 00:00:05]} c5 {[%clk 00:19:55]} {[%emt 00:00:08]} 9. dxc5
{[%clk 00:20:41]} {[%emt 00:00:27]} Nxc5 {[%clk 00:19:50]} {[%emt 00:00:15]} 10.
Be2 {[%clk 00:20:39]} {[%emt 00:00:12]} dxc4 {[%clk 00:19:33]} {[%emt
00:00:27]} 11. Qxd8+ {[%clk 00:20:43]} {[%emt 00:00:06]} Bxd8 {[%clk 00:19:36]}
{[%emt 00:00:07]} 12. Bxc4 {[%clk 00:20:46]} {[%emt 00:00:07]} O-O {[%clk
00:19:21]} {[%emt 00:00:24]} 13. Nc3 {[%clk 00:20:33]} {[%emt 00:00:24]} Ba5
{[%clk 00:18:57]} {[%emt 00:00:33]} 14. Rc1 {[%clk 00:20:22]} {[%emt 00:00:21]}
Na4 {[%clk 00:18:03]} {[%emt 00:01:02]} 15. Rc2 {[%clk 00:19:42]} {[%emt
00:00:53]} Nxb2 {[%clk 00:17:53]} {[%emt 00:00:20]} 16. O-O {[%clk 00:19:48]}
{[%emt 00:00:04]} Nxc4 {[%clk 00:17:55]} {[%emt 00:00:06]} 17. Bxf6 {[%clk
00:19:49]} {[%emt 00:00:10]} gxf6 {[%clk 00:18:03]} {[%emt 00:00:03]} 18. Ne4
{[%clk 00:19:58]} f5 {[%clk 00:17:08]} {[%emt 00:01:05]} 19. Nf6+ {[%clk
00:19:18]} {[%emt 00:00:51]} Kg7 {[%clk 00:16:29]} {[%emt 00:00:49]} 20. Nh5+
{[%clk 00:19:26]} {[%emt 00:00:02]} Kg6 {[%clk 00:16:22]} {[%emt 00:00:16]} 21.
Nf4+ {[%clk 00:19:35]} {[%emt 00:00:01]} Kf6 {[%clk 00:16:31]} 22. Rxc4 {[%clk
00:19:42]} {[%emt 00:00:04]} Bd7 {[%clk 00:16:00]} {[%emt 00:00:40]} 23. Rd1
{[%clk 00:19:26]} {[%emt 00:00:28]} Bc6 {[%clk 00:15:42]} {[%emt 00:00:27]} 24.
Nd3 {[%clk 00:18:33]} {[%emt 00:01:04]} Rad8 {[%clk 00:14:20]} {[%emt
00:01:32]} 25. Nd4 {[%clk 00:17:50]} {[%emt 00:00:53]} Be4 {[%clk 00:13:45]}
{[%emt 00:00:45]} 26. Ra4 {[%clk 00:14:34]} {[%emt 00:03:26]} Bb6 {[%clk
00:13:15]} {[%emt 00:00:39]} 27. Nb2 {[%clk 00:14:12]} {[%emt 00:00:32]} e5
{[%clk 00:11:50]} {[%emt 00:01:35]} 28. Ne2 {[%clk 00:13:27]} {[%emt 00:00:56]}
Rxd1+ {[%clk 00:11:30]} {[%emt 00:00:29]} 29. Nxd1 {[%clk 00:13:36]} {[%emt
00:00:02]} Bc2 {[%clk 00:11:32]} {[%emt 00:00:08]} 30. Ndc3 {[%clk 00:13:39]}
{[%emt 00:00:08]} Bxa4 {[%clk 00:11:36]} {[%emt 00:00:06]} 31. Nxa4 {[%clk
00:13:48]} {[%emt 00:00:02]} Rd8 {[%clk 00:11:37]} {[%emt 00:00:08]} 32. g3
{[%clk 00:13:39]} {[%emt 00:00:19]} Rd2 {[%clk 00:11:36]} {[%emt 00:00:10]} 33.
Nec3 {[%clk 00:13:39]} {[%emt 00:00:11]} Ba5 {[%clk 00:11:32]} {[%emt
00:00:14]} 34. Kf1 {[%clk 00:13:35]} {[%emt 00:00:14]} Bxc3 {[%clk 00:11:31]}
{[%emt 00:00:11]} 35. Nxc3 {[%clk 00:13:44]} {[%emt 00:00:02]} Rc2 {[%clk
00:11:32]} {[%emt 00:00:09]} 36. Nd5+ {[%clk 00:13:40]} {[%emt 00:00:14]} Ke6
{[%clk 00:11:34]} {[%emt 00:00:07]} 37. Nb4 {[%clk 00:13:49]} {[%emt 00:00:02]}
Rb2 {[%clk 00:11:38]} {[%emt 00:00:06]} 38. a3 {[%clk 00:13:57]} {[%emt
00:00:02]} Rb3 {[%clk 00:11:40]} {[%emt 00:00:07]} 39. Ke2 {[%clk 00:14:01]}
{[%emt 00:00:06]} Rxa3 {[%clk 00:11:45]} {[%emt 00:00:06]} 40. Nd3 {[%clk
00:14:11]} Rxd3 41. Kxd3 {[%clk 00:14:19]} Kd5 {[%clk 00:11:56]} {[%emt
00:00:01]} 42. f3 {[%clk 00:14:22]} {[%emt 00:00:08]} a5 {[%clk 00:12:03]}
{[%emt 00:00:03]} 43. g4 {[%clk 00:14:28]} {[%emt 00:00:04]} fxg4 {[%clk
00:12:06]} {[%emt 00:00:07]} 44. e4+ {[%clk 00:14:36]} {[%emt 00:00:02]} Kc5
{[%clk 00:12:11]} {[%emt 00:00:04]} 45. fxg4 {[%clk 00:14:45]} {[%emt
00:00:01]} a4 {[%clk 00:12:16]} {[%emt 00:00:05]} 46. Kc3 {[%clk 00:14:55]} b5
{[%emt 00:00:01]} 47. h4 f6 {[%clk 00:12:24]} {[%emt 00:00:11]} 0-1

[Event "NM-Senior Hurtig 2018"]
[Site "Frimurer Logen, Norway"]
[Date "2018.11.11"]
[Round "9.11"]
[White "Lea, Per"]
[Black "Taksrud, Vidar"]
[Result "0-1"]
[TimeControl "20 + 10"]
[WhiteElo "1673"]
[BlackElo "1861"]

1. e4 {[%clk 00:20:00]} {[%emt 00:06:08]} Nf6 {[%clk 00:20:00]} {[%emt
00:00:10]} 2. e5 {[%clk 00:20:00]} {[%emt 00:00:04]} Nd5 {[%clk 00:20:00]}
{[%emt 00:00:01]} 3. d4 {[%clk 00:20:00]} {[%emt 00:00:03]} d6 {[%clk
00:20:02]} {[%emt 00:00:27]} 4. c4 {[%clk 00:20:13]} {[%emt 00:00:02]} Nb6
{[%clk 00:20:11]} 5. f4 {[%clk 00:20:17]} {[%emt 00:00:07]} dxe5 {[%clk
00:20:17]} {[%emt 00:00:05]} 6. fxe5 {[%clk 00:20:26]} {[%emt 00:00:01]} Bf5
{[%clk 00:20:13]} {[%emt 00:00:14]} 7. Nf3 {[%clk 00:19:42]} {[%emt 00:00:53]}
e6 {[%clk 00:20:20]} {[%emt 00:00:03]} 8. Nc3 {[%clk 00:19:02]} {[%emt
00:00:50]} Be7 {[%clk 00:19:35]} {[%emt 00:00:55]} 9. Be2 {[%clk 00:18:39]}
{[%emt 00:00:33]} c6 {[%clk 00:19:19]} {[%emt 00:00:26]} 10. O-O {[%clk
00:18:29]} {[%emt 00:00:21]} O-O {[%clk 00:19:25]} {[%emt 00:00:03]} 11. Be3
{[%clk 00:17:58]} {[%emt 00:00:40]} a5 {[%clk 00:19:07]} {[%emt 00:00:29]} 12.
Qd2 {[%clk 00:17:35]} {[%emt 00:00:33]} a4 {[%clk 00:18:49]} {[%emt 00:00:28]}
13. Rad1 {[%clk 00:16:51]} {[%emt 00:00:53]} Na6 {[%clk 00:18:54]} {[%emt
00:00:06]} 14. a3 {[%clk 00:16:55]} {[%emt 00:00:07]} Bg4 {[%clk 00:17:58]}
{[%emt 00:01:05]} 15. Ne4 {[%clk 00:16:08]} {[%emt 00:00:57]} Bxf3 {[%clk
00:17:55]} {[%emt 00:00:13]} 16. Rxf3 {[%clk 00:16:14]} {[%emt 00:00:05]} c5
{[%clk 00:17:50]} {[%emt 00:00:15]} 17. dxc5 {[%clk 00:15:22]} {[%emt
00:01:01]} Qxd2 {[%clk 00:17:49]} {[%emt 00:00:11]} 18. Rxd2 {[%clk 00:15:31]}
{[%emt 00:00:02]} Nc8 {[%clk 00:17:57]} {[%emt 00:00:02]} 19. Nd6 {[%clk
00:15:03]} {[%emt 00:00:38]} Na7 {[%clk 00:18:05]} {[%emt 00:00:01]} 20. Nxb7
{[%clk 00:13:46]} {[%emt 00:01:27]} Nc6 {[%clk 00:18:12]} {[%emt 00:00:03]} 21.
Rd7 {[%clk 00:12:27]} {[%emt 00:01:29]} Ra7 {[%clk 00:18:20]} {[%emt 00:00:02]}
22. Rxe7 {[%clk 00:10:47]} {[%emt 00:01:51]} Nxe7 {[%clk 00:18:28]} {[%emt
00:00:02]} 23. c6 {[%clk 00:10:41]} {[%emt 00:00:15]} Nxc6 {[%clk 00:18:36]}
{[%emt 00:00:02]} 24. Bxa7 {[%clk 00:10:50]} {[%emt 00:00:01]} Nxa7 {[%clk
00:18:44]} {[%emt 00:00:02]} 25. c5 {[%clk 00:10:18]} {[%emt 00:00:42]} Nc7
{[%clk 00:18:52]} {[%emt 00:00:02]} 26. b4 {[%clk 00:09:39]} {[%emt 00:00:49]}
axb3 {[%clk 00:18:52]} {[%emt 00:00:10]} 27. Rxb3 {[%clk 00:09:48]} Nc6 {[%clk
00:19:01]} {[%emt 00:00:02]} 28. Re3 {[%clk 00:09:45]} {[%emt 00:00:12]} Nd5
{[%clk 00:19:07]} {[%emt 00:00:05]} 29. Re4 {[%clk 00:09:45]} {[%emt 00:00:09]}
Ra8 {[%clk 00:19:12]} {[%emt 00:00:05]} 30. Bb5 {[%clk 00:09:42]} {[%emt
00:00:14]} Nce7 {[%clk 00:18:40]} {[%emt 00:00:41]} 31. a4 {[%clk 00:09:46]}
{[%emt 00:00:07]} Nc3 {[%clk 00:18:24]} {[%emt 00:00:26]} 32. Rb4 {[%clk
00:09:34]} {[%emt 00:00:22]} Ned5 {[%clk 00:18:27]} {[%emt 00:00:06]} 33. Rb3
{[%clk 00:09:30]} {[%emt 00:00:15]} Nxa4 {[%clk 00:17:33]} {[%emt 00:01:04]} 34.
c6 {[%clk 00:08:56]} {[%emt 00:00:43]} Nac3 {[%clk 00:17:09]} {[%emt 00:00:34]}
35. c7 {[%clk 00:08:32]} {[%emt 00:00:34]} Nxb5 {[%clk 00:17:09]} {[%emt
00:00:10]} 36. Rxb5 {[%clk 00:08:40]} {[%emt 00:00:03]} Nxc7 {[%clk 00:17:16]}
{[%emt 00:00:02]} 37. Rc5 {[%clk 00:08:41]} {[%emt 00:00:10]} Nd5 {[%clk
00:17:20]} {[%emt 00:00:05]} 38. Nd6 {[%clk 00:08:28]} {[%emt 00:00:23]} h5
{[%clk 00:17:20]} {[%emt 00:00:09]} 39. Ne4 {[%clk 00:08:23]} {[%emt 00:00:16]}
Kh7 {[%clk 00:15:55]} {[%emt 00:01:35]} 40. Rb5 {[%clk 00:08:10]} {[%emt
00:00:24]} Kg6 {[%clk 00:16:00]} {[%emt 00:00:04]} 41. Rb7 {[%clk 00:08:13]}
{[%emt 00:00:07]} f5 {[%clk 00:15:34]} {[%emt 00:00:35]} 42. Nc5 {[%clk
00:08:04]} {[%emt 00:00:19]} Ra1+ {[%clk 00:13:43]} {[%emt 00:02:02]} 43. Kf2
{[%clk 00:08:13]} {[%emt 00:00:02]} Ra2+ {[%clk 00:13:51]} {[%emt 00:00:01]} 44.
Kf3 {[%clk 00:08:13]} {[%emt 00:00:10]} Ra3+ {[%clk 00:13:59]} {[%emt
00:00:03]} 45. Kf2 {[%clk 00:08:13]} {[%emt 00:00:08]} Nf4 {[%clk 00:13:44]}
{[%emt 00:00:25]} 46. Re7 {[%clk 00:08:01]} {[%emt 00:00:22]} Ra2+ {[%clk
00:12:46]} {[%emt 00:01:08]} 47. Kf3 {[%clk 00:08:10]} {[%emt 00:00:01]} Nxg2
{[%clk 00:12:52]} {[%emt 00:00:04]} 48. Nxe6 {[%clk 00:08:14]} {[%emt
00:00:06]} Ne1+ {[%clk 00:12:51]} {[%emt 00:00:11]} 49. Kg3 {[%clk 00:08:13]}
{[%emt 00:00:11]} Kh6 {[%clk 00:12:09]} {[%emt 00:00:52]} 50. Nxg7 {[%clk
00:07:58]} {[%emt 00:00:25]} Rg2+ {[%clk 00:12:17]} {[%emt 00:00:02]} 51. Kh3
{[%clk 00:07:56]} {[%emt 00:00:12]} Rxg7 {[%clk 00:12:24]} {[%emt 00:00:02]} 52.
Rxg7 {[%clk 00:08:02]} {[%emt 00:00:06]} Kxg7 {[%clk 00:12:32]} {[%emt
00:00:02]} 53. Kh4 {[%clk 00:08:11]} Kg6 {[%clk 00:12:35]} {[%emt 00:00:07]} 54.
e6 {[%clk 00:08:20]} {[%emt 00:00:02]} Nf3+ {[%clk 00:12:44]} {[%emt 00:00:01]}
55. Kg3 {[%clk 00:08:26]} {[%emt 00:00:04]} Nd4 {[%clk 00:12:42]} {[%emt
00:00:12]} 56. e7 {[%clk 00:08:33]} {[%emt 00:00:03]} Kf7 {[%clk 00:12:50]}
{[%emt 00:00:02]} 57. Kh4 {[%clk 00:08:42]} f4 {[%clk 00:12:55]} {[%emt
00:00:06]} 0-1

[Event "NM-Senior Hurtig 2018"]
[Site "Frimurer Logen, Norway"]
[Date "2018.11.11"]
[Round "9.12"]
[White "Ofstad, Per"]
[Black "Wangen, Reidar Magne"]
[Result "1-0"]
[TimeControl "20 + 10"]
[WhiteElo "2131"]
[BlackElo "1733"]

1. e4 {[%clk 00:20:07]} {[%emt 00:00:02]} e6 {[%clk 00:20:09]} {[%emt
00:00:01]} 2. d4 {[%clk 00:19:47]} {[%emt 00:00:31]} d5 {[%clk 00:20:17]}
{[%emt 00:00:01]} 3. exd5 {[%clk 00:19:47]} {[%emt 00:00:11]} exd5 {[%clk
00:20:23]} {[%emt 00:00:03]} 4. Nf3 {[%clk 00:19:43]} {[%emt 00:00:13]} Bd6
{[%clk 00:20:13]} {[%emt 00:00:21]} 5. Be2 {[%clk 00:18:48]} {[%emt 00:01:06]}
Ne7 {[%clk 00:19:50]} {[%emt 00:00:32]} 6. O-O {[%clk 00:18:43]} {[%emt
00:00:15]} O-O {[%clk 00:18:55]} {[%emt 00:01:05]} 7. Nc3 {[%clk 00:18:22]}
{[%emt 00:00:30]} c6 {[%clk 00:19:02]} {[%emt 00:00:03]} 8. Bg5 {[%clk
00:18:04]} {[%emt 00:00:27]} Qc7 {[%clk 00:18:02]} {[%emt 00:01:11]} 9. Bh4
{[%clk 00:17:26]} {[%emt 00:00:48]} Nf5 {[%clk 00:17:20]} {[%emt 00:00:53]} 10.
Bg3 {[%clk 00:17:33]} {[%emt 00:00:03]} Nxg3 {[%clk 00:17:22]} {[%emt
00:00:08]} 11. hxg3 {[%clk 00:17:36]} {[%emt 00:00:07]} Bg4 {[%clk 00:16:58]}
{[%emt 00:00:34]} 12. Bd3 {[%clk 00:17:29]} {[%emt 00:00:16]} h6 {[%clk
00:16:40]} {[%emt 00:00:30]} 13. Qd2 {[%clk 00:17:12]} {[%emt 00:00:26]} Nd7
{[%clk 00:15:59]} {[%emt 00:00:51]} 14. Nh4 {[%clk 00:15:42]} {[%emt 00:01:39]}
Rae8 {[%clk 00:14:25]} {[%emt 00:01:44]} 15. Nf5 {[%clk 00:14:53]} {[%emt
00:00:59]} Bxf5 {[%clk 00:14:16]} {[%emt 00:00:20]} 16. Bxf5 {[%clk 00:15:01]}
{[%emt 00:00:02]} Re7 {[%clk 00:12:41]} {[%emt 00:01:45]} 17. Rfe1 {[%clk
00:13:42]} {[%emt 00:01:29]} Rfe8 {[%clk 00:12:45]} {[%emt 00:00:06]} 1-0